fUSD/lending_fUSD_20250115
["ID","MTS","AMOUNT","RATE_DAILY","PERIOD"]
[348980388,1736913049933,-500.0,0.00010547,2]
[348980389,1736913049943,-500.0,0.00010547,2]
[348980390,1736913049952,-515.72466003,0.00010547,2]
[348980391,1736913049962,-515.37648068,0.00010547,2]
[348980392,1736913049972,-500.0,0.00010547,2]
[348980393,1736913049982,-221.42956686,0.00010547,2]
[348980394,1736913049991,-500.0,0.00010547,2]
[348980395,1736913050001,-513.04830949,0.00010547,2]
[348980396,1736913050010,-500.0,0.00010547,2]
[348980397,1736913050020,-536.46475501,0.00010547,2]
[348980398,1736913050029,-519.04338907,0.00010547,2]
[348980399,1736913050039,-500.0,0.00010547,2]
[348980400,1736913050048,-513.94779742,0.00010547,2]
[348980401,1736913050057,-607.75151682,0.00010547,2]
[348980402,1736913050066,-592.37095846,0.00010547,2]
[348980403,1736913050075,-500.0,0.00010547,2]
[348980404,1736913050085,-500.0,0.00010547,2]
[348980405,1736913050095,-529.63528467,0.00010547,2]
[348980406,1736913050104,-568.13956292,0.00010547,2]
[348980407,1736913050117,-616.19253499,0.00010547,2]
[348980408,1736913050126,-884.9,0.00010547,2]
[348980409,1736913050136,-520.78279334,0.00010547,2]
[348980410,1736913050146,-500.0,0.00010547,2]
[348980411,1736913050155,-513.8789187,0.00010547,2]
[348980412,1736913050165,-514.19701096,0.00010547,2]
[348980413,1736913050175,-1232.17,0.00010547,2]
[348980414,1736913050184,-515.58005506,0.00010547,2]
[348980415,1736913050193,-500.0,0.00010547,2]
[348980416,1736913050203,-515.70188,0.00010547,2]
[348980417,1736913050213,-500.0,0.00010547,2]
[348980418,1736913050223,-500.0,0.00010547,2]
[348980419,1736913050234,-500.0,0.00010547,2]
[348980420,1736913050244,-500.0,0.00010547,2]
[348980421,1736913050253,-500.0,0.00010547,2]
[348980422,1736913050262,-330.72078832,0.00010547,2]
[348980423,1736913050271,-500.0,0.00010547,2]
[348980424,1736913050281,-500.0,0.00010547,2]
[348980425,1736913050290,-500.0,0.00010547,2]
[348980426,1736913050299,-500.0,0.00010547,2]
[348980427,1736913050308,-500.0,0.00010547,2]
[348980428,1736913050318,-500.0,0.00010547,2]
[348980429,1736913050327,-500.0,0.00010547,2]
[348980430,1736913050338,-511.62231162,0.00010547,2]
[348980431,1736913050348,-521.52555133,0.00010547,2]
[348980432,1736913050358,-500.0,0.00010547,2]
[348980433,1736913050368,-875.4,0.00010547,2]
[348980434,1736913050377,-838.93,0.00010547,2]
[348980435,1736913050387,-617.89233564,0.00010547,2]
[348980436,1736913050398,-499.00161605,0.00010547,2]
[348980437,1736913050407,-500.0,0.00010547,2]
[348980438,1736913050417,-512.11943835,0.00010547,2]
[348980439,1736913050428,-630.50824443,0.00010547,2]
[348980440,1736913050437,-514.56462854,0.00010547,2]
[348980441,1736913050447,-537.0773577,0.00010547,2]
[348980442,1736913050457,-515.72789969,0.00010547,2]
[348980443,1736913050466,-240.09,0.00010547,2]
[348980444,1736913050476,-500.0,0.00010547,2]
[348980445,1736913050653,-700.09,0.00010547,2]
[348980446,1736913050663,-500.0,0.00010547,2]
[348980447,1736913050673,-500.0,0.00010547,2]
[348980448,1736913050683,-579.15,0.00010547,2]
[348980449,1736913050693,-511.99007413,0.00010547,2]
[348980450,1736913050708,-500.0,0.00010547,2]
[348980451,1736913050718,-500.0,0.00010547,2]
[348980452,1736913050728,-500.0,0.00010547,2]
[348980453,1736913050739,-383.1649781,0.00010547,2]
[348980454,1736913050750,-500.0,0.00010547,2]
[348980455,1736913050759,-500.0,0.00010547,2]
[348980456,1736913050769,-500.0,0.00010547,2]
[348980457,1736913050781,-604.98326675,0.00010547,2]
[348980458,1736913050790,-511.55073135,0.00010547,2]
[348980459,1736913050800,-513.04215747,0.00010547,2]
[348980460,1736913050810,-500.0,0.00010547,2]
[348980461,1736913050819,-500.0,0.00010547,2]
[348980462,1736913050829,-500.0,0.00010547,2]
[348980463,1736913050838,-500.0,0.00010547,2]
[348980464,1736913050848,-500.0,0.00010547,2]
[348980465,1736913050857,-500.0,0.00010547,2]
[348980466,1736913050866,-319.95,0.00010547,2]
[348980467,1736913050875,-1288.48,0.00010547,2]
[348980468,1736913050885,-500.0,0.00010547,2]
[348980469,1736913050894,-500.0,0.00010547,2]
[348980470,1736913050903,-492.2168691,0.00010547,2]
[348980471,1736913050912,-500.0,0.00010547,2]
[348980472,1736913050922,-500.0,0.00010547,2]
[348980473,1736913050931,-500.0,0.00010547,2]
[348980474,1736913050941,-500.0,0.00010547,2]
[348980475,1736913050950,-500.0,0.00010547,2]
[348980476,1736913050960,-500.0,0.00010547,2]
[348980477,1736913050969,-500.0,0.00010547,2]
[348980478,1736913050979,-500.0,0.00010547,2]
[348980479,1736913050989,-500.0,0.00010547,2]
[348980480,1736913050999,-500.0,0.00010547,2]
[348980481,1736913051009,-500.0,0.00010547,2]
[348980482,1736913051019,-500.0,0.00010547,2]
[348980483,1736913051028,-500.0,0.00010547,2]
[348980484,1736913051038,-500.0,0.00010547,2]
[348980485,1736913051047,-500.0,0.00010547,2]
[348980486,1736913051057,-500.0,0.00010547,2]
[348980487,1736913051067,-526.0911583,0.00010547,2]
[348980488,1736913051076,-500.0,0.00010547,2]
[348980489,1736913051086,-500.0,0.00010547,2]
[348980490,1736913051095,-500.0,0.00010547,2]
[348980491,1736913051105,-682.12,0.00010547,2]
[348980492,1736913051115,-528.02609293,0.00010547,2]
[348980493,1736913051124,-505.85445901,0.00010547,2]
[348980494,1736913051134,-1179.81,0.00010547,2]
[348980495,1736913051145,-644.27,0.00010547,2]
[348980496,1736913051154,-500.0,0.00010547,2]
[348980497,1736913051164,-500.0,0.00010547,2]
[348980498,1736913051174,-522.32910407,0.00010547,2]
[348980499,1736913051183,-500.0,0.00010547,2]
[348980500,1736913051193,-500.0,0.00010547,2]
[348980501,1736913051202,-500.0,0.00010547,2]
[348980502,1736913051211,-500.0,0.00010547,2]
[348980503,1736913051220,-1368.86,0.00010547,2]
[348980504,1736913051230,-641.5,0.00010547,2]
[348980505,1736913051239,-500.0,0.00010547,2]
[348980506,1736913051249,-474.79512426,0.00010547,2]
[348980507,1736913051258,-500.0,0.00010547,2]
[348980508,1736913051267,-612.39229877,0.00010547,2]
[348980509,1736913051277,-206.34,0.00010547,2]
[348980510,1736913051286,-500.0,0.00010547,2]
[348980511,1736913051295,-608.5,0.00010547,2]
[348980512,1736913051305,-500.0,0.00010547,2]
[348980513,1736913051314,-500.0,0.00010547,2]
[348980514,1736913051323,-500.0,0.00010547,2]
[348980515,1736913051333,-500.0,0.00010547,2]
[348980516,1736913051343,-512.65662417,0.00010547,2]
[348980517,1736913051353,-500.0,0.00010547,2]
[348980518,1736913051362,-500.0,0.00010547,2]
[348980519,1736913051372,-500.0,0.00010547,2]
[348980520,1736913051381,-461.8,0.00010547,2]
[348980521,1736913051390,-500.0,0.00010547,2]
[348980522,1736913051399,-800.0,0.000108,3]
[348980523,1736913051409,-500.0,0.00010819,2]
[348980524,1736913051420,-627.01036271,0.00010819,2]
[348980525,1736913051432,-500.0,0.00010819,2]
[348980526,1736913051442,-500.0,0.00010819,2]
[348980527,1736913051451,-176.758972,0.00010821,2]
[348980528,1736913051463,-185.722918,0.00010821,2]
[348980529,1736913051473,-533.0,0.00010821,2]
[348980530,1736913051483,-510.79,0.00010821,2]
[348980531,1736913051492,-509.36561732,0.00010821,2]
[348980532,1736913051501,-425.87200088,0.00010821,2]
[348980533,1736913051511,-647.5304563,0.00010821,2]
[348980534,1736913051520,-512.75225485,0.00010821,2]
[348980535,1736913051529,-226.76427653,0.00010821,2]
[348980536,1736913051539,-180.17819038,0.00010821,2]
[348980537,1736913051548,-202.80599443,0.00010821,2]
[348980538,1736913051558,-282.15696968,0.00010821,2]
[348980539,1736913051567,-558.68982518,0.00010821,2]
[348980540,1736913051577,-152.4,0.00010821,2]
[348980541,1736913051586,-500.0,0.00010821,2]
[348980542,1736913051596,-513.12,0.00010821,2]
[348980543,1736913051605,-229.19260186,0.00010821,2]
[348980544,1736913051615,-157.13179571,0.00010821,2]
[348980545,1736913051625,-500.0,0.00010821,2]
[348980546,1736913051634,-500.0,0.00010821,2]
[348980547,1736913051644,-181.87380723,0.00010821,2]
[348980548,1736913051654,-635.89172835,0.00010821,2]
[348980549,1736913051663,-500.0,0.00010821,2]
[348980550,1736913051673,-514.69723867,0.00010821,2]
[348980551,1736913051682,-500.0,0.00010821,2]
[348980552,1736913051693,-393.16316698,0.00010821,2]
[348980553,1736913051707,-500.0,0.00010821,2]
[348980554,1736913051716,-549.58621955,0.00010821,2]
[348980555,1736913051726,-500.0,0.00010821,2]
[348980556,1736913051735,-884.9,0.00010821,2]
[348980557,1736913051747,-394.9248812,0.00010821,2]
[348980558,1736913051757,-1232.17,0.00010821,2]
[348980559,1736913051767,-521.24051369,0.00010821,2]
[348980560,1736913051778,-532.01446726,0.00010821,2]
[348980561,1736913051787,-500.0,0.00010821,2]
[348980562,1736913051797,-527.26257168,0.00010821,2]
[348980563,1736913051806,-503.52879387,0.00010821,2]
[348980564,1736913051816,-492.10277059,0.00010821,2]
[348980565,1736913051825,-395.38137519,0.00010821,2]
[348980566,1736913051834,-500.0,0.00010821,2]
[348980567,1736913051846,-500.0,0.00010821,2]
[348980568,1736913051855,-532.31666944,0.00010821,2]
[348980569,1736913051864,-500.0,0.00010821,2]
[348980570,1736913051873,-500.0,0.00010821,2]
[348980571,1736913051883,-875.4,0.00010821,2]
[348980572,1736913051893,-838.93,0.00010821,2]
[348980573,1736913051902,-500.0,0.00010821,2]
[348980574,1736913051911,-193.95407361,0.00010821,2]
[348980575,1736913051921,-700.09,0.00010821,2]
[348980576,1736913051930,-623.48403888,0.00010821,2]
[348980577,1736913051940,-500.0,0.00010821,2]
[348980578,1736913051949,-579.15,0.00010821,2]
[348980579,1736913051959,-500.0,0.00010821,2]
[348980580,1736913051969,-500.0,0.00010821,2]
[348980581,1736913051978,-500.0,0.00010821,2]
[348980582,1736913051988,-500.0,0.00010821,2]
[348980583,1736913051997,-500.0,0.00010821,2]
[348980584,1736913052007,-500.0,0.00010821,2]
[348980585,1736913052016,-500.0,0.00010821,2]
[348980586,1736913052026,-224.15437052,0.00010821,2]
[348980587,1736913052035,-641.93745885,0.00010821,2]
[348980588,1736913052045,-500.0,0.00010821,2]
[348980589,1736913052054,-500.0,0.00010821,2]
[348980590,1736913052064,-1288.48,0.00010821,2]
[348980591,1736913052073,-500.0,0.00010821,2]
[348980592,1736913052082,-500.0,0.00010821,2]
[348980593,1736913052093,-161.02,0.00010821,2]
[348980594,1736913052102,-500.0,0.00010821,2]
[348980595,1736913052111,-500.0,0.00010821,2]
[348980596,1736913052121,-500.0,0.00010821,2]
[348980597,1736913052130,-500.0,0.00010821,2]
[348980598,1736913052140,-500.0,0.00010821,2]
[348980599,1736913052150,-500.0,0.00010821,2]
[348980600,1736913052159,-387.58,0.00010821,2]
[348980601,1736913052169,-500.0,0.00010821,2]
[348980602,1736913052179,-576.56,0.00010821,2]
[348980603,1736913052188,-500.0,0.00010821,2]
[348980604,1736913052198,-465.52,0.00010821,2]
[348980605,1736913052208,-500.0,0.00010821,2]
[348980606,1736913052217,-500.0,0.00010821,2]
[348980607,1736913052226,-188.19,0.00010821,2]
[348980608,1736913052235,-682.12,0.00010821,2]
[348980609,1736913052245,-500.0,0.00010821,2]
[348980610,1736913052255,-644.27,0.00010821,2]
[348980611,1736913052264,-1179.81,0.00010821,2]
[348980612,1736913052273,-519.77259566,0.00010821,2]
[348980613,1736913052283,-500.0,0.00010821,2]
[348980614,1736913052292,-500.0,0.00010821,2]
[348980615,1736913052301,-500.0,0.00010821,2]
[348980616,1736913052310,-500.0,0.00010821,2]
[348980617,1736913052319,-500.0,0.00010821,2]
[348980618,1736913052329,-1368.86,0.00010821,2]
[348980619,1736913052339,-641.5,0.00010821,2]
[348980620,1736913052348,-377.67270504,0.00010821,2]
[348980621,1736913052358,-500.0,0.00010821,2]
[348980622,1736913052367,-608.5,0.00010821,2]
[348980623,1736913052376,-500.0,0.00010821,2]
[348980624,1736913052386,-500.0,0.00010821,2]
[348980625,1736913052396,-500.0,0.00010821,2]
[348980626,1736913052406,-500.0,0.00010821,2]
[348980627,1736913052415,-500.0,0.00010821,2]
[348980628,1736913052425,-536.74802524,0.00010821,2]
[348980629,1736913052435,-500.0,0.00010821,2]
[348980630,1736913052445,-500.0,0.00010821,2]
[348980631,1736913052455,-420.0,0.00010888,2]
[348980632,1736913052464,-255.0,0.00010889,2]
[348980633,1736913052474,-1300.0,0.000109,3]
[348980634,1736913052484,-365.16908511,0.000109,2]
[348980635,1736913052494,-381.5918501,0.00010904,2]
[348980636,1736913052504,-201.26408194,0.00010943,2]
[348980637,1736913052514,-999.0,0.00010958,2]
[348980638,1736913052523,-500.0,0.00010959,2]
[348980639,1736913052533,-500.0,0.00010959,2]
[348980640,1736913052542,-200.0,0.00010959,2]
[348980641,1736913052553,-150.0,0.00010959,2]
[348980642,1736913052562,-502.70295306,0.00010973,2]
[348980643,1736913052572,-194.90941619,0.0001099,2]
[348980644,1736913052582,-398.42581588,0.00010993,2]
[348980645,1736913052593,-402.21688497,0.00010999,2]
[348980646,1736913052603,-274271.89293184,0.00011,2]
[348980647,1736913052619,-1131.68089844,0.00011,2]
[348980648,1736913052632,-1116.78320645,0.00011,2]
[348980649,1736913314087,508.57935775,9.999e-05,7]
[348980651,1736913662030,158.14,8.219e-05,2]
[348980813,1736914231539,-374.13139,9.83e-05,2]
[348980814,1736914231548,-150.69,9.88e-05,2]
[348980815,1736914231558,-196.75,9.88e-05,2]
[348980816,1736914231567,-1000.0,9.88e-05,2]
[348980817,1736914231576,-1000.0,9.899e-05,2]
[348980818,1736914231586,-169.87,9.926e-05,2]
[348980819,1736914231596,-39.40861,9.938e-05,2]
[348980820,1736914231799,-271.20139,9.938e-05,2]
[348980821,1736914231809,-150.0,9.998e-05,2]
[348980822,1736914231819,-143.03867924,9.999e-05,2]
[348980823,1736914231831,-359.8952067,9.999e-05,2]
[348980824,1736914231841,-501.77624325,9.999e-05,2]
[348980825,1736914231851,-500.0,9.999e-05,2]
[348980826,1736914231861,-149.20832582,9.999e-05,2]
[348980827,1736914232062,-352.47646352,9.999e-05,2]
[348980828,1736914232074,-159.92669672,9.999e-05,2]
[348980829,1736914232086,-340.07330328,9.999e-05,2]
[348980830,1736914232096,-209.68513868,9.999e-05,2]
[348980831,1736914232112,-290.31486132,9.999e-05,2]
[348980832,1736914232121,-259.49394404,9.999e-05,2]
[348980833,1736914232131,-284.35586356,9.999e-05,2]
[348980834,1736914232141,-505.48496705,9.999e-05,2]
[348980835,1736914232153,-518.66756328,9.999e-05,2]
[348980836,1736914232162,-500.0,9.999e-05,2]
[348980837,1736914232172,-509.144762,9.999e-05,2]
[348980838,1736914232182,-506.87000336,9.999e-05,2]
[348980839,1736914232192,-512.9097477,9.999e-05,2]
[348980840,1736914232201,-319.68496693,9.999e-05,2]
[348980841,1736914232210,-509.34569612,9.999e-05,2]
[348980842,1736914232219,-509.83794265,9.999e-05,2]
[348980843,1736914232228,-513.17430582,9.999e-05,2]
[348980844,1736914232238,-500.0,9.999e-05,2]
[348980845,1736914232247,-500.0,9.999e-05,2]
[348980846,1736914232256,-503.39132549,9.999e-05,2]
[348980847,1736914232265,-510.67880282,9.999e-05,2]
[348980848,1736914232274,-181.22939655,9.999e-05,2]
[348980849,1736914232283,-500.0,9.999e-05,2]
[348980850,1736914232293,-511.39853379,9.999e-05,2]
[348980851,1736914232302,-505.84388743,9.999e-05,2]
[348980852,1736914232311,-520.14512824,9.999e-05,2]
[348980853,1736914232321,-472.86220743,9.999e-05,2]
[348980854,1736914232330,-500.0,9.999e-05,2]
[348980855,1736914232340,-525.93807054,9.999e-05,2]
[348980856,1736914232349,-500.0,9.999e-05,2]
[348980857,1736914232363,-500.0,9.999e-05,2]
[348980858,1736914232373,-511.22721699,9.999e-05,2]
[348980859,1736914232383,-500.0,9.999e-05,2]
[348980860,1736914232392,-514.93140164,9.999e-05,2]
[348980861,1736914232401,-512.32840172,9.999e-05,2]
[348980862,1736914232410,-507.08365989,9.999e-05,2]
[348980863,1736914232421,-500.0,9.999e-05,2]
[348980864,1736914232430,-498.19008099,9.999e-05,2]
[348980865,1736914232440,-508.79912863,9.999e-05,2]
[348980866,1736914232449,-500.0,9.999e-05,2]
[348980867,1736914232459,-505.49617955,9.999e-05,2]
[348980868,1736914232468,-504.68152205,9.999e-05,2]
[348980869,1736914232479,-500.0,9.999e-05,2]
[348980870,1736914232488,-500.0,9.999e-05,2]
[348980871,1736914232498,-500.0,9.999e-05,2]
[348980872,1736914232510,-500.0,9.999e-05,2]
[348980873,1736914232520,-500.0,9.999e-05,2]
[348980874,1736914232529,-503.85971486,9.999e-05,2]
[348980875,1736914232539,-4715.7430094,9.999e-05,2]
[348980876,1736914232549,-464.42611021,9.999e-05,2]
[348980877,1736914232558,-182.7913661,9.999e-05,2]
[348980878,1736914232568,-504.08466171,9.999e-05,2]
[348980879,1736914232577,-535.85911708,9.999e-05,2]
[348980880,1736914232587,-504.92273442,9.999e-05,2]
[348980881,1736914232596,-516.93470313,9.999e-05,2]
[348980882,1736914232611,-512.75837946,9.999e-05,2]
[348980883,1736914232620,-500.0,9.999e-05,2]
[348980884,1736914232630,-500.0,9.999e-05,2]
[348980885,1736914232640,-539.06,9.999e-05,2]
[348980886,1736914232650,-506.2512247,9.999e-05,2]
[348980887,1736914232659,-500.0,9.999e-05,2]
[348980888,1736914232669,-500.0,9.999e-05,2]
[348980889,1736914232678,-500.0,9.999e-05,2]
[348980890,1736914232689,-510.61130129,9.999e-05,2]
[348980891,1736914232698,-500.0,9.999e-05,2]
[348980892,1736914232708,-500.0,9.999e-05,2]
[348980893,1736914232717,-500.0,9.999e-05,2]
[348980894,1736914232727,-500.0,9.999e-05,2]
[348980895,1736914232737,-500.0,9.999e-05,2]
[348980896,1736914232747,-500.0,9.999e-05,2]
[348980897,1736914232757,-510.24012566,9.999e-05,2]
[348980898,1736914232767,-500.0,9.999e-05,2]
[348980899,1736914232778,-500.0,9.999e-05,2]
[348980900,1736914232789,-500.0,9.999e-05,2]
[348980901,1736914232799,-505.12822742,9.999e-05,2]
[348980902,1736914232809,-500.0,9.999e-05,2]
[348980903,1736914232819,-507.4631291,9.999e-05,2]
[348980904,1736914232828,-554.21,9.999e-05,2]
[348980905,1736914232838,-500.0,9.999e-05,2]
[348980906,1736914232848,-500.0,9.999e-05,2]
[348980907,1736914232861,-500.0,9.999e-05,2]
[348980908,1736914232870,-500.0,9.999e-05,2]
[348980909,1736914232880,-262.51701055,9.999e-05,2]
[348980910,1736914232890,-495.0,9.999e-05,2]
[348980911,1736914232900,-500.0,9.999e-05,2]
[348980912,1736914232909,-500.0,9.999e-05,2]
[348980913,1736914232919,-500.0,9.999e-05,2]
[348980914,1736914232929,-500.0,9.999e-05,2]
[348980915,1736914232939,-500.0,9.999e-05,2]
[348980916,1736914232949,-1224.19,9.999e-05,2]
[348980917,1736914232959,-500.0,9.999e-05,2]
[348980918,1736914232969,-500.0,9.999e-05,2]
[348980919,1736914232979,-533.26,9.999e-05,2]
[348980920,1736914232989,-500.0,9.999e-05,2]
[348980921,1736914232998,-501.74,9.999e-05,2]
[348980922,1736914233009,-500.0,9.999e-05,2]
[348980923,1736914233019,-500.0,9.999e-05,2]
[348980924,1736914233029,-500.0,9.999e-05,2]
[348980925,1736914233039,-500.0,9.999e-05,2]
[348980926,1736914233049,-500.0,9.999e-05,2]
[348980927,1736914233060,-500.0,9.999e-05,2]
[348980928,1736914233076,-500.0,9.999e-05,2]
[348980929,1736914233086,-992.04815426,9.999e-05,2]
[348980930,1736914233095,-1000.0,9.999e-05,2]
[348980931,1736914233110,-500.0,9.999e-05,2]
[348980932,1736914233120,-500.0,9.999e-05,2]
[348980933,1736914233130,-500.0,9.999e-05,2]
[348980934,1736914233141,-500.0,9.999e-05,2]
[348980935,1736914233154,-500.0,9.999e-05,2]
[348980936,1736914233164,-500.0,9.999e-05,2]
[348980937,1736914233174,-500.0,9.999e-05,2]
[348980938,1736914233184,-500.0,9.999e-05,2]
[348980939,1736914233193,-500.0,9.999e-05,2]
[348980940,1736914233203,-500.0,9.999e-05,2]
[348980941,1736914233213,-500.0,9.999e-05,2]
[348980942,1736914233222,-500.0,9.999e-05,2]
[348980943,1736914233231,-500.0,9.999e-05,2]
[348980944,1736914233241,-313.38,9.999e-05,2]
[348980945,1736914233250,-500.0,9.999e-05,2]
[348980946,1736914233259,-1166.8,9.999e-05,2]
[348980947,1736914233268,-250.0,0.00010033,2]
[348980948,1736914233278,-156.46,0.00010137,2]
[348980949,1736914233287,-250.0,0.00010259,2]
[348980950,1736914233297,-176.95307925,0.00010272,2]
[348980951,1736914233307,-500.0,0.00010273,2]
[348980952,1736914233317,-500.0,0.00010273,2]
[348980953,1736914233325,-500.0,0.00010273,2]
[348980954,1736914233334,-500.0,0.00010273,2]
[348980955,1736914233343,-500.0,0.00010273,2]
[348980956,1736914233354,-500.0,0.00010273,2]
[348980957,1736914233362,-500.0,0.00010273,2]
[348980958,1736914233371,-500.0,0.00010273,2]
[348980959,1736914233380,-500.0,0.00010273,2]
[348980960,1736914233389,-1224.19,0.00010273,2]
[348980961,1736914233399,-500.0,0.00010273,2]
[348980962,1736914233408,-500.0,0.00010273,2]
[348980963,1736914233417,-533.26,0.00010273,2]
[348980964,1736914233427,-500.0,0.00010273,2]
[348980965,1736914233436,-500.0,0.00010273,2]
[348980966,1736914233445,-414.52,0.00010273,2]
[348980967,1736914233455,-500.0,0.00010273,2]
[348980968,1736914233464,-500.0,0.00010273,2]
[348980969,1736914233474,-500.0,0.00010273,2]
[348980970,1736914233483,-500.0,0.00010273,2]
[348980971,1736914233492,-500.0,0.00010273,2]
[348980972,1736914233502,-500.0,0.00010273,2]
[348980973,1736914233511,-500.0,0.00010273,2]
[348980974,1736914233520,-498.83400907,0.00010273,2]
[348980975,1736914233529,-500.0,0.00010273,2]
[348980976,1736914233539,-500.0,0.00010273,2]
[348980977,1736914233548,-500.0,0.00010273,2]
[348980978,1736914233557,-500.0,0.00010273,2]
[348980979,1736914233567,-416.64700972,0.00010273,2]
[348980980,1736914233576,-1166.8,0.00010273,2]
[348980981,1736914233586,-500.0,0.00010356,2]
[348980982,1736914233595,-170.31,0.00010446,2]
[348980983,1736914233606,-158.14,0.00010478,2]
[348980984,1736914233615,-308.81697036,0.00010547,2]
[348980985,1736914233624,-500.0,0.00010547,2]
[348980986,1736914233634,-500.0,0.00010547,2]
[348980987,1736914233644,-500.0,0.00010547,2]
[348980988,1736914233653,-328.2952972,0.00010547,2]
[348980989,1736914233662,-500.0,0.00010547,2]
[348980990,1736914233672,-500.0,0.00010547,2]
[348980991,1736914233681,-500.0,0.00010547,2]
[348980992,1736914233691,-500.0,0.00010547,2]
[348980993,1736914233700,-1224.19,0.00010547,2]
[348980994,1736914233709,-500.0,0.00010547,2]
[348980995,1736914233718,-500.0,0.00010547,2]
[348980996,1736914233728,-533.26,0.00010547,2]
[348980997,1736914233738,-500.0,0.00010547,2]
[348980998,1736914233747,-500.0,0.00010547,2]
[348980999,1736914233757,-500.0,0.00010547,2]
[348981000,1736914233766,-500.0,0.00010547,2]
[348981001,1736914233776,-500.0,0.00010547,2]
[348981002,1736914233785,-500.0,0.00010547,2]
[348981003,1736914233795,-500.0,0.00010547,2]
[348981004,1736914233804,-500.0,0.00010547,2]
[348981005,1736914233813,-500.0,0.00010547,2]
[348981006,1736914233823,-500.0,0.00010547,2]
[348981007,1736914233832,-500.0,0.00010547,2]
[348981008,1736914233841,-500.0,0.00010547,2]
[348981009,1736914233852,-1166.8,0.00010547,2]
[348981010,1736914233862,-5556.0,0.000107,5]
[348981011,1736914233871,-828.8617,0.00010721,2]
[348981012,1736914233881,-500.0,0.00010795,2]
[348981013,1736914233891,-300.0,0.000108,3]
[348981014,1736914233900,-500.0,0.00010821,2]
[348981015,1736914233910,-500.0,0.00010821,2]
[348981016,1736914233919,-500.0,0.00010821,2]
[348981017,1736914233929,-500.0,0.00010821,2]
[348981018,1736914233938,-500.0,0.00010821,2]
[348981019,1736914233947,-500.0,0.00010821,2]
[348981020,1736914233956,-500.0,0.00010821,2]
[348981021,1736914233965,-1224.19,0.00010821,2]
[348981022,1736914233974,-500.0,0.00010821,2]
[348981023,1736914233984,-500.0,0.00010821,2]
[348981024,1736914233993,-533.26,0.00010821,2]
[348981025,1736914234002,-500.0,0.00010821,2]
[348981026,1736914234011,-500.0,0.00010821,2]
[348981027,1736914234020,-500.0,0.00010821,2]
[348981028,1736914234030,-500.0,0.00010821,2]
[348981029,1736914234039,-500.0,0.00010821,2]
[348981030,1736914234049,-500.0,0.00010821,2]
[348981031,1736914234058,-500.0,0.00010821,2]
[348981032,1736914234071,-500.0,0.00010821,2]
[348981033,1736914234080,-500.0,0.00010821,2]
[348981034,1736914234090,-500.0,0.00010821,2]
[348981035,1736914234099,-500.0,0.00010821,2]
[348981036,1736914234111,-500.0,0.00010821,2]
[348981037,1736914234120,-1166.8,0.00010821,2]
[348981038,1736914234129,-600.0,0.000109,3]
[348981039,1736914234138,-182.58454256,0.000109,2]
[348981040,1736914234149,-201.26408194,0.000109,2]
[348981041,1736914234159,-500.0,0.00010959,2]
[348981042,1736914234169,-200.0,0.00010959,2]
[348981043,1736914234178,-150.43132,0.00010967,2]
[348981044,1736914234188,-500.0,0.00010973,2]
[348981045,1736914234197,-500.0,0.00010998,2]
[348981046,1736914234206,-500.0,0.00010998,2]
[348981047,1736914234216,-500.0,0.00010998,2]
[348981048,1736914234225,-500.0,0.00010998,2]
[348981049,1736914234235,-500.0,0.00010998,2]